bitfinex/quotes_BTCUSD_20251224
["timestamp","ask_amount","ask_price","bid_price","bid_amount"]
[1766584956873,0.00011,87392.0,87379.0,0.36360439]
[1766584957035,0.00011,87392.0,87379.0,0.35216]
[1766584957475,0.00011,87392.0,87377.0,0.06866762]
[1766584957679,0.00011,87392.0,87374.0,0.0686698]
[1766584957867,0.00011,87392.0,87372.0,0.01159]
[1766584957868,0.00055,87377.0,87372.0,0.01159]
[1766584958071,0.00055,87377.0,87372.0,0.00011]
[1766584958483,0.01148,87385.0,87372.0,0.00011]
[1766584958866,0.01148,87385.0,87371.0,0.05722722]
[1766584959070,0.01148,87385.0,87370.0,0.06867304]
[1766584959289,0.00011,87381.0,87370.0,0.06867304]
[1766584959932,0.00011,87381.0,87371.0,0.01144544]
[1766584960160,0.00011,87381.0,87373.0,0.01144518]
[1766584960378,0.00011,87381.0,87374.0,0.01144505]
[1766584960579,0.00011,87381.0,87371.0,0.06867264]
[1766584960712,0.00011,87381.0,87372.0,0.01144531]
[1766584961227,0.00011,87381.0,87373.0,0.01144518]
[1766584961429,0.00011,87381.0,87372.0,0.01144531]
[1766584962170,0.00011,87381.0,87373.0,0.01144518]
[1766584962371,0.00011,87381.0,87371.0,0.01144544]
[1766584962569,0.00011,87381.0,87372.0,0.01144531]
[1766584962772,0.00011,87381.0,87373.0,0.01144518]
[1766584962933,0.00011,87381.0,87372.0,0.01144531]
[1766584963132,0.00011,87381.0,87373.0,0.01144518]
[1766584964539,0.00011,87381.0,87372.0,0.06867185]
[1766584964969,0.00011,87381.0,87371.0,0.01144544]
[1766584965306,0.00011,87381.0,87371.0,0.06867263]
[1766584965447,0.00011,87381.0,87371.0,0.06895063]
[1766584965648,0.00011,87381.0,87372.0,0.01144531]
[1766584965891,0.00373457,87385.0,87373.0,0.01144518]
[1766584966101,0.00373457,87385.0,87373.0,0.06867097]
[1766584966337,0.00373457,87385.0,87375.0,0.01144492]
[1766584966974,0.00373457,87385.0,87377.0,0.01144465]
[1766584967256,0.00373457,87385.0,87375.0,0.0686693]
[1766584967462,0.00373457,87385.0,87377.0,0.01144465]
[1766584967583,0.00373457,87385.0,87376.0,0.01144479]
[1766584968440,0.00373457,87385.0,87376.0,0.06866873]
[1766584968791,0.00373457,87385.0,87377.0,0.05722302]
[1766584968995,0.00373457,87385.0,87377.0,0.01144465]
[1766584969231,0.00373457,87385.0,87376.0,0.06866873]
[1766584969438,0.00373457,87385.0,87372.0,0.43000059]
[1766584969634,0.00373457,87385.0,87375.0,0.25]
[1766584972455,0.00373457,87385.0,87375.0,0.26144492]
[1766584973292,0.00373457,87385.0,87376.0,0.01144479]
[1766584973495,0.00373457,87385.0,87377.0,0.01144465]
[1766584973720,0.00373457,87385.0,87379.0,0.01144439]
[1766584975011,0.00373457,87385.0,87380.0,0.01144426]
[1766584977138,0.00318557,87385.0,87381.0,0.01144413]
[1766584977676,0.00318557,87385.0,87382.0,0.011444]
[1766584978166,0.00318557,87385.0,87381.0,0.06866452]
[1766584978477,0.00011,87392.0,87387.0,0.01144334]
[1766584978716,0.00011,87392.0,87375.0,0.6439839]
[1766584978717,0.02465994,87397.0,87392.0,0.01144269]
[1766584978834,0.01148,87404.0,87393.0,0.36801256]
[1766584979035,0.01148,87404.0,87393.0,0.35657]
[1766584979426,0.01148,87404.0,87395.0,0.0114423]
[1766584979620,0.01148,87404.0,87395.0,0.06865379]
[1766584980093,0.01158663,87404.0,87395.0,0.0114423]
[1766584980244,0.01158663,87404.0,87394.0,0.36801243]
[1766584980639,0.01158663,87404.0,87394.0,0.35657]
[1766584980847,0.01158663,87404.0,87394.0,0.36801243]
[1766584982679,0.01158663,87404.0,87397.0,0.01144204]
[1766584983057,0.01158663,87404.0,87396.0,0.01144217]
[1766584984911,0.01158663,87404.0,87395.0,0.42522376]
[1766584985336,0.001099,87395.0,87389.0,0.37949308]
[1766584985538,0.001099,87395.0,87391.0,0.01144282]
[1766584985738,0.01158663,87404.0,87390.0,0.01144295]
[1766584985912,0.01158663,87404.0,87394.0,0.35657]
[1766584986122,0.01158663,87404.0,87395.0,0.0114423]
[1766584987316,0.01158663,87404.0,87394.0,0.36801243]
[1766584988704,0.01158663,87404.0,87394.0,0.35657]
[1766584989177,0.01158663,87404.0,87389.0,0.08013732]
[1766584989396,0.01158663,87404.0,87389.0,0.37949308]
[1766584989559,0.01158663,87404.0,87391.0,0.01144282]
[1766584989763,0.00055,87391.0,87389.0,0.01148]
[1766584989990,0.00055,87391.0,87373.0,0.13066817]
[1766584989991,0.01148,87394.0,87375.0,0.250278]
[1766584991279,0.01148,87394.0,87375.0,0.22446364]
[1766584991483,0.01148,87394.0,87367.0,0.36801596]
[1766584991684,0.01148,87394.0,87368.0,0.01144583]
[1766584991889,0.01148,87394.0,87367.0,0.36801596]
[1766584992087,0.01148,87394.0,87368.0,0.01144583]
[1766584992291,0.01148,87394.0,87369.0,0.0114457]
[1766584992637,0.01148,87394.0,87367.0,0.35657]
[1766584992787,5.05,87393.0,87359.0,0.35657]
[1766584992975,5.05,87391.0,87359.0,0.36805]
[1766584993173,0.07045994,87390.0,87360.0,0.01144688]
[1766584993379,0.0458,87390.0,87359.0,0.36805]
[1766584993619,0.0458,87390.0,87360.0,0.01144688]
[1766584993819,0.0458,87390.0,87359.0,0.37949701]
[1766584994018,0.0458,87390.0,87359.0,0.36805]
[1766584994197,5.05,87389.0,87362.0,0.35657]
[1766584994398,5.05,87387.0,87362.0,0.35657]
[1766584994650,5.05,87385.0,87362.0,0.35657]
[1766584994795,0.02465994,87384.0,87362.0,0.35657]
[1766584995245,5.05,87384.0,87362.0,0.35657]
[1766584995447,0.02465994,87383.0,87362.0,0.35657]
[1766584995646,5.05,87384.0,87354.0,0.35657]
[1766584995911,0.01144361,87385.0,87354.0,0.35657]
[1766584995912,5.05,87382.0,87354.0,0.35657]
[1766584996049,5.05,87380.0,87354.0,0.35657]
[1766584996236,5.05,87378.0,87354.0,0.35657]
[1766584996437,5.05,87374.0,87354.0,0.35497494]
[1766584996753,0.11922299,87375.0,87354.0,0.35497494]
[1766584996754,5.05,87372.0,87354.0,0.35497494]
[1766584996976,5.05,87370.0,87354.0,0.35497494]
[1766584997176,0.0426736,87371.0,87354.0,0.35497494]
[1766584997177,0.03613994,87369.0,87354.0,0.35497494]
[1766584997541,0.01148,87369.0,87338.0,0.08017734]
[1766584997717,0.01148,87369.0,87336.0,0.06869959]
[1766584997718,0.00011,87364.0,87344.0,0.00011]
[1766584997878,0.00011,87364.0,87339.0,0.01144963]
[1766584998487,0.00011,87364.0,87338.0,0.06869852]
[1766584998694,0.00011,87364.0,87339.0,0.01144963]
[1766584998896,0.00011,87364.0,87339.0,0.35657]
[1766584999914,0.00011,87364.0,87341.0,0.35657]
[1766585000134,0.00011,87364.0,87343.0,0.35657]
[1766585000308,0.05728,87363.0,87343.0,0.35657]
[1766585001666,0.05728,87362.0,87344.0,0.01144898]
[1766585002628,0.05728,87362.0,87345.0,0.35657]
[1766585003255,0.00011,87364.0,87345.0,0.36801885]
[1766585003447,0.01148,87361.0,87347.0,0.35657]
[1766585005016,0.01148,87361.0,87343.0,0.35657]
[1766585005623,0.01148,87361.0,87343.0,0.36801911]
[1766585005949,0.01148,87361.0,87345.0,0.36801885]
[1766585006237,0.01148,87360.0,87347.0,0.36801859]
[1766585006814,0.01148,87360.0,87348.0,0.35657]
[1766585007036,0.01148,87360.0,87348.0,0.36801845]
[1766585007218,0.010931,87360.0,87348.0,0.36801845]
[1766585007787,0.00011,87364.0,87351.0,0.35657]
[1766585007994,0.00011,87364.0,87350.0,0.01144819]
[1766585007995,0.01148,87363.0,87350.0,0.35657]
[1766585008190,0.01148,87363.0,87353.0,0.00011]
[1766585008532,0.01148,87363.0,87354.0,0.3605]
[1766585010000,0.01148,87363.0,87353.0,0.00011]
[1766585010313,0.01148,87363.0,87354.0,0.3605]
[1766585010514,0.04615541,87369.0,87354.0,0.3605]
[1766585010714,0.01148,87368.0,87354.0,0.3605]
[1766585013120,0.01148,87367.0,87354.0,0.42918592]
[1766585013324,0.01148,87366.0,87359.0,0.3605]
[1766585014084,0.000549,87359.0,87353.0,0.36061]
[1766585014291,0.000549,87359.0,87341.0,0.3605]
[1766585014292,0.01148,87358.0,87341.0,0.3605]
[1766585014490,0.01148,87358.0,87342.0,0.01144924]
[1766585014687,0.01148,87358.0,87343.0,0.05724505]
[1766585014987,0.01148,87358.0,87347.0,0.01144859]
[1766585015955,0.01148,87358.0,87346.0,0.01144872]
[1766585017779,0.01148,87358.0,87347.0,0.01144859]
[1766585017992,0.01148,87358.0,87347.0,0.06869154]
[1766585018354,0.01148,87358.0,87345.0,0.0686926]
[1766585018564,0.01148,87358.0,87346.0,0.01144872]
[1766585018877,0.01148,87358.0,87347.0,0.01144859]
[1766585019080,0.03437144,87371.0,87349.0,0.40994934]
[1766585019285,0.0458,87368.0,87351.0,0.35270806]
[1766585019488,0.0458,87368.0,87351.0,0.34126]
[1766585020589,0.0458,87368.0,87351.0,0.35270806]
[1766585021158,0.0458,87368.0,87352.0,0.01144793]
[1766585021409,0.03437144,87372.0,87353.0,0.3527078]
[1766585021608,0.00011,87373.0,87353.0,0.3527078]
[1766585021609,0.05728,87371.0,87355.0,0.34122754]
[1766585021869,0.05728,87371.0,87356.0,0.01144741]
[1766585022085,0.05728,87371.0,87355.0,0.32978]
[1766585022673,0.05728,87371.0,87355.0,0.34122754]
[1766585023074,0.05728,87371.0,87357.0,0.34126]
[1766585023665,0.05728,87371.0,87352.0,0.4099474]
[1766585023866,0.05728,87371.0,87354.0,0.34126]
[1766585025506,0.08187763,87371.0,87354.0,0.34126]
[1766585025710,0.02459763,87370.0,87354.0,0.34126]
[1766585025917,0.05728,87371.0,87354.0,0.34126]
[1766585026122,0.08187763,87371.0,87354.0,0.34126]
[1766585026319,0.02459763,87370.0,87354.0,0.34126]
[1766585026495,0.02459763,87370.0,87350.0,0.06868909]
[1766585026699,0.0522531,87370.0,87351.0,0.01144806]
[1766585026903,0.0522531,87370.0,87352.0,0.34126]
[1766585027083,0.02459763,87370.0,87352.0,0.34126]
[1766585027673,0.02459763,87370.0,87351.0,0.01144806]
[1766585027875,0.02459763,87370.0,87352.0,0.06868743]
[1766585028010,0.02459763,87370.0,87351.0,0.01144806]
[1766585028211,0.02459763,87370.0,87350.0,0.06868913]
[1766585028411,0.02459763,87370.0,87351.0,0.06868817]
[1766585028598,0.02459763,87370.0,87352.0,0.01144793]
[1766585029836,0.02459763,87370.0,87351.0,0.06868817]
[1766585030224,0.02459763,87372.0,87351.0,0.06868817]
[1766585030429,0.0410845,87373.0,87351.0,0.06868817]
[1766585030430,0.02459763,87371.0,87351.0,0.06868817]
[1766585030675,0.02459763,87370.0,87351.0,0.06868817]
[1766585030875,0.02459763,87372.0,87351.0,0.06868817]
[1766585031050,0.02459763,87371.0,87351.0,0.06868817]
[1766585031252,0.02459763,87370.0,87351.0,0.06868817]
[1766585031485,0.02459763,87372.0,87351.0,0.06868817]
[1766585031631,0.0409745,87370.0,87352.0,0.01144793]
[1766585031830,0.02459763,87369.0,87353.0,0.0114478]
[1766585032078,0.02459763,87368.0,87352.0,0.01144793]
[1766585032239,0.01148,87367.0,87352.0,0.01144793]
[1766585032630,0.01148,87367.0,87351.0,0.06868817]
[1766585032828,0.01148,87367.0,87352.0,0.01144793]
[1766585033054,0.01148,87367.0,87354.0,0.01144767]
[1766585033255,0.01148,87367.0,87353.0,0.0114478]
[1766585033899,0.01148,87367.0,87352.0,0.06868727]
[1766585034101,0.01148,87367.0,87352.0,0.01144793]
[1766585035169,0.01148,87367.0,87352.0,0.06868745]
[1766585035368,0.01148,87367.0,87353.0,0.0114478]
[1766585035791,0.01148,87367.0,87352.0,0.06868745]
[1766585035988,0.01148,87367.0,87353.0,0.0114478]
[1766585037543,0.01148,87367.0,87352.0,0.06868745]
[1766585038236,0.03607763,87367.0,87352.0,0.06868745]
[1766585038388,0.01148,87367.0,87352.0,0.06868745]
[1766585038588,0.0309145,87365.0,87352.0,0.06868745]
[1766585038788,0.0309145,87365.0,87353.0,0.0114478]
[1766585039388,0.0309145,87365.0,87353.0,0.06868681]
[1766585040237,0.0309145,87365.0,87353.0,0.0114478]
[1766585040686,0.0309145,87365.0,87351.0,0.01144806]
[1766585041041,0.0309145,87365.0,87352.0,0.01144793]
[1766585041287,0.0309145,87365.0,87350.0,0.35270819]
[1766585041682,0.0309145,87365.0,87352.0,0.01144793]
[1766585041882,0.0309145,87365.0,87352.0,0.0686876]
[1766585042083,0.0309145,87365.0,87353.0,0.41599679]
[1766585042285,0.0309145,87365.0,87354.0,0.34731]
[1766585042489,0.0309145,87365.0,87354.0,0.35875767]
[1766585043338,0.0309145,87365.0,87354.0,0.34731]
[1766585043527,0.0309145,87365.0,87354.0,0.35875767]
[1766585043732,0.0309145,87365.0,87355.0,0.01144754]
[1766585043948,0.0309145,87365.0,87354.0,0.41599588]
[1766585044355,0.0309145,87365.0,87355.0,0.01144754]
[1766585044586,0.01148,87364.0,87357.0,0.34731]
[1766585045278,0.01148,87364.0,87357.0,0.35875727]
[1766585045490,0.01148,87364.0,87358.0,0.01144714]
[1766585045795,0.01148,87364.0,87357.0,0.41599365]
[1766585045945,0.01148,87364.0,87357.0,0.34731]
[1766585048099,0.01148,87363.0,87357.0,0.34731]
[1766585048850,0.01148,87363.0,87357.0,0.35875727]
[1766585049209,0.01148,87363.0,87357.0,0.34731]
[1766585051267,0.01148,87363.0,87352.0,0.06868757]
[1766585051411,0.01148,87363.0,87351.0,0.01144806]
[1766585051772,0.01148,87363.0,87351.0,0.34731]
[1766585051976,0.000549,87351.0,87345.0,0.34731]
[1766585052113,0.01148,87363.0,87285.0,2.86416132]
[1766585052114,0.01148,87350.0,87330.0,0.34731]
[1766585052313,0.01148,87350.0,87326.0,0.01145134]
[1766585052314,0.01148,87349.0,87339.0,0.00011]
[1766585052527,0.01148,87349.0,87332.0,0.34731]
[1766585052932,0.01148,87349.0,87332.0,0.35876055]
[1766585053178,0.01148,87349.0,87332.0,0.34731]
[1766585053728,0.01148,87349.0,87332.0,0.35876055]
[1766585054306,0.01148,87349.0,87332.0,0.34731]
[1766585055361,0.01148,87349.0,87332.0,0.35879]
[1766585055571,0.01148,87349.0,87332.0,0.02293055]
[1766585055788,0.01148,87349.0,87337.0,0.34731]
[1766585056890,0.00521799,87349.0,87341.0,0.01144937]
[1766585057088,0.00521799,87349.0,87340.0,0.40455692]
[1766585057089,0.00521799,87349.0,87340.0,0.34731]
[1766585057295,0.00521799,87349.0,87340.0,0.3587595]
[1766585057528,0.01148,87348.0,87342.0,0.01144924]
[1766585057754,0.01148,87348.0,87343.0,0.34731]
[1766585058232,0.00011,87359.0,87345.0,0.35875885]
[1766585058233,0.01148,87354.0,87345.0,0.35875885]
[1766585058530,0.01148,87354.0,87345.0,0.34731]
[1766585061151,0.01148,87354.0,87345.0,0.35875885]
[1766585062333,0.01148,87354.0,87345.0,0.34731]
[1766585063258,0.00011,87359.0,87345.0,0.34731]
[1766585063459,0.01148,87358.0,87345.0,0.34731]
[1766585063883,0.00011,87359.0,87341.0,0.08017575]
[1766585063884,0.00011,87359.0,87343.0,0.01144911]
[1766585064091,0.00011,87359.0,87349.0,0.01144832]
[1766585064290,0.00011,87359.0,87349.0,0.06868978]
[1766585064625,0.00011,87359.0,87351.0,0.01144806]
[1766585064966,0.00011,87359.0,87351.0,0.06868833]
[1766585065190,0.00011,87359.0,87354.0,0.01144767]
[1766585065392,0.01159,87359.0,87357.0,0.05723598]
[1766585065821,0.01159,87359.0,87358.0,0.05723574]
[1766585066324,0.00011,87359.0,87358.0,0.05723574]
[1766585066476,0.00011,87359.0,87357.0,0.05723598]
[1766585067306,0.00011,87359.0,87356.0,0.0686832]
[1766585067702,0.00011,87359.0,87357.0,0.34731]
[1766585068507,0.00011,87359.0,87352.0,0.01144793]
[1766585068764,0.00011,87359.0,87352.0,0.06868629]
[1766585068938,0.00011,87359.0,87351.0,0.33851]
[1766585069350,0.00011,87359.0,87350.0,0.01148]
[1766585069974,0.00011,87359.0,87352.0,0.01144793]
[1766585070138,0.00011,87359.0,87353.0,0.06868666]
[1766585070536,0.00011,87359.0,87353.0,0.0114478]
[1766585070741,0.00011,87359.0,87352.0,0.34995793]
[1766585070957,0.01148,87362.0,87355.0,0.33851]
[1766585072399,0.01148,87362.0,87355.0,0.33861669]
[1766585072919,3.31e-06,87355.0,87350.0,0.06868907]
[1766585073159,3.31e-06,87355.0,87350.0,0.01144819]
[1766585073160,0.00035547,87355.0,87350.0,0.01144819]
[1766585073385,0.00035547,87355.0,87350.0,0.34995819]
[1766585073756,0.00035547,87355.0,87350.0,0.33851]
[1766585073969,0.00035547,87355.0,87350.0,0.34995819]
[1766585075195,0.01148,87363.0,87351.0,0.33851]
[1766585075396,0.01148,87363.0,87351.0,0.33861655]
[1766585079604,0.01148,87363.0,87351.0,0.1901423]
[1766585079803,0.00011,87361.0,87351.0,0.1901423]
[1766585082563,0.00011,87361.0,87357.0,0.00018744]
[1766585083291,0.00011,87361.0,87351.0,0.00010655]
[1766585083965,0.00011,87361.0,87352.0,0.01144793]
[1766585084130,0.00011,87361.0,87352.0,0.06868708]
[1766585084735,0.02479889,87373.0,87360.0,0.01144688]
[1766585085086,0.00597908,87411.0,87373.0,0.000325]
[1766585085087,0.02468889,87382.0,87373.0,0.000325]
[1766585085229,0.01148,87381.0,87367.0,0.33301]
[1766585085880,0.00011,87383.0,87381.0,0.00055]
[1766585086078,0.00011,87383.0,87380.0,0.01144426]
[1766585086299,0.00011,87383.0,87378.0,0.01144452]
[1766585086503,0.01148,87389.0,87379.0,0.33301]
[1766585087138,0.01148,87389.0,87379.0,0.34445439]
[1766585087742,0.01148,87389.0,87379.0,0.33301]
[1766585087884,0.01148,87389.0,87379.0,0.34445439]
[1766585088549,0.01148,87389.0,87380.0,0.01144426]
[1766585089509,0.03435936,87398.0,87380.0,0.01144426]
[1766585089729,0.00011,87399.0,87380.0,0.01144426]
[1766585089730,0.01148,87397.0,87387.0,0.05721674]
[1766585089970,0.01148,87397.0,87388.0,0.39022545]
[1766585090164,0.01148,87397.0,87390.0,0.01144295]
[1766585090367,0.00011,87399.0,87389.0,0.01144308]
[1766585090571,0.00011,87399.0,87394.0,0.01144243]
[1766585090767,0.00011,87399.0,87395.0,0.0114423]
[1766585091003,0.00011,87399.0,87397.0,0.00055]
[1766585091201,0.01007855,87407.0,87397.0,0.33301]
[1766585091534,0.01018437,87407.0,87397.0,0.33301]
[1766585092078,4.37e-06,87407.0,87397.0,0.01144204]
[1766585092272,0.01148,87410.0,87398.0,0.33301]
[1766585092494,0.01148,87411.0,87399.0,0.33301]
[1766585095963,0.01148,87411.0,87399.0,0.21808867]
[1766585096473,0.01148,87411.0,87399.0,0.21753967]
[1766585100788,0.01148,87411.0,87398.0,0.00010582]
[1766585101037,0.01148,87411.0,87383.0,0.01144387]
[1766585101206,0.01158659,87411.0,87384.0,0.01148]
[1766585101575,0.01158659,87411.0,87384.0,0.02292374]
[1766585102285,0.01158659,87411.0,87384.0,0.01148]
[1766585103141,0.01158659,87411.0,87384.0,0.02292374]
[1766585103367,0.01158659,87411.0,87384.0,0.37517]
[1766585103555,4.7,87409.0,87380.0,0.01144426]
[1766585103745,0.01164296,87410.0,87377.0,0.37517]
[1766585103746,4.7,87407.0,87377.0,0.37517]
[1766585103951,4.7,87405.0,87377.0,0.37517]
[1766585104295,0.04599984,87410.0,87377.0,0.37517]
[1766585104296,4.7,87409.0,87378.0,0.01144452]
[1766585104769,4.7,87407.0,87380.0,0.01144426]
[1766585105058,4.7,87405.0,87379.0,0.06866632]
[1766585105262,4.7,87405.0,87380.0,0.01144426]
[1766585105421,0.06302241,87409.0,87380.0,0.01144426]
[1766585105422,4.7,87408.0,87380.0,0.01144426]
[1766585105730,4.7,87406.0,87380.0,0.01144426]
[1766585105909,4.7,87404.0,87378.0,0.06866663]
[1766585106118,0.0360712,87403.0,87379.0,0.06866576]
[1766585106307,0.0360712,87403.0,87382.0,0.011444]
[1766585106308,0.01148,87403.0,87382.0,0.011444]
[1766585106509,0.01148,87403.0,87383.0,0.01144387]
[1766585106806,0.01148,87402.0,87384.0,0.06866194]
[1766585106986,0.01148,87401.0,87384.0,0.01144374]
[1766585107188,0.01148,87401.0,87385.0,0.01144361]
[1766585107617,0.00010659,87411.0,87385.0,0.01144361]
[1766585107618,0.01148,87400.0,87385.0,0.01144361]
[1766585107828,0.01148,87399.0,87385.0,0.06866157]
[1766585108646,0.01148,87398.0,87386.0,0.01144348]
[1766585108828,0.01148,87398.0,87386.0,0.01115386]
[1766585109159,0.01148,87398.0,87387.0,0.01144334]
[1766585109541,0.01148,87398.0,87386.0,0.06837119]
[1766585109961,0.03446276,87411.0,87387.0,0.01144334]
[1766585110141,1.032,87409.0,87387.0,0.01144334]
[1766585110354,0.9453,87407.0,87387.0,0.01144334]
[1766585110551,0.9593,87405.0,87387.0,0.01144334]
[1766585110755,0.9335,87403.0,87386.0,0.06837119]
[1766585110992,0.0245912,87402.0,87387.0,0.01144334]
[1766585111171,0.01148,87401.0,87387.0,0.01144334]
[1766585111399,0.0458,87408.0,87387.0,0.01144334]
[1766585111400,0.01148,87400.0,87387.0,0.01144334]
[1766585111762,0.01148,87400.0,87386.0,0.06837119]
[1766585111948,0.01148,87400.0,87387.0,0.01144334]
[1766585112144,0.01148,87400.0,87386.0,0.06837119]
[1766585112355,0.01148,87400.0,87387.0,0.01144334]
[1766585113248,0.00014818,87400.0,87388.0,0.01144321]
[1766585113451,0.00014818,87400.0,87389.0,0.01144308]
[1766585114002,0.00014818,87400.0,87388.0,0.01144321]
[1766585114197,0.00014818,87400.0,87389.0,0.01144308]
[1766585114704,0.02465807,87410.0,87388.0,0.01144321]
[1766585114705,0.04108109,87411.0,87400.0,0.000148]
[1766585114938,0.00010659,87411.0,87399.0,0.3628896]
[1766585115322,0.01148,87410.0,87399.0,0.3628896]
[1766585115541,0.06573916,87411.0,87399.0,0.3628896]
[1766585115542,0.04108109,87411.0,87399.0,0.3628896]
[1766585115827,0.01148,87409.0,87400.0,0.36369]
[1766585116003,0.01148,87411.0,87401.0,0.36369]
[1766585116269,0.0458,87419.0,87401.0,0.36369]
[1766585116270,0.01148,87412.0,87401.0,0.36369]
[1766585116423,0.01148,87412.0,87401.0,0.36379659]
[1766585117477,0.01148,87414.0,87413.0,0.30577633]
[1766585117679,0.0032,87420.0,87405.0,0.37513099]
[1766585117882,0.01148,87419.0,87405.0,0.37513099]
[1766585118055,0.01148,87419.0,87405.0,0.36369]
[1766585118740,0.0032,87420.0,87405.0,0.37513099]
[1766585118982,0.01148,87418.0,87405.0,0.37513099]
[1766585119473,0.01148,87418.0,87405.0,0.36369]
[1766585123090,0.00028209,87414.0,87402.0,0.01148]
[1766585123298,0.01148,87418.0,87402.0,0.01148]
[1766585124616,0.01148,87418.0,87401.0,0.00010659]
[1766585124819,0.0032,87420.0,87402.0,0.36369]
[1766585125023,0.01148,87417.0,87402.0,0.36369]
[1766585128495,0.00025075,87413.0,87402.0,0.36369]
[1766585131091,0.02468262,87425.0,87412.0,0.05720038]
[1766585131262,0.01,87445.0,87418.0,0.01143929]
[1766585131263,0.01148,87427.0,87418.0,0.01143929]
[1766585131437,0.01148,87428.0,87417.0,0.35839942]
[1766585131655,0.01148,87431.0,87418.0,0.34696]
[1766585131966,0.01148,87431.0,87418.0,0.28971086]
[1766585132275,0.01148,87430.0,87414.0,0.35839981]
[1766585132446,0.01148,87430.0,87416.0,0.34696]
[1766585135545,0.02468262,87441.0,87416.0,0.34696]
[1766585135546,0.02468262,87441.0,87416.0,0.36987955]
[1766585135751,3.1329,87439.0,87417.0,0.01143942]
[1766585135945,0.02468262,87438.0,87417.0,0.06863638]
[1766585136266,0.4558,87439.0,87416.0,0.35844]
[1766585136614,4.7,87437.0,87416.0,0.35844]
[1766585136747,0.02468262,87436.0,87416.0,0.35844]
[1766585136949,0.0002507,87421.0,87416.0,0.01148]
[1766585137173,0.0002507,87421.0,87407.0,0.01148]
[1766585137174,0.000249,87416.0,87407.0,0.01148]
[1766585137353,0.000249,87416.0,87401.0,0.01148]
[1766585137689,0.00011,87417.0,87397.0,0.01159]
[1766585137997,0.00021661,87417.0,87397.0,0.01159]
[1766585138133,0.00021661,87417.0,87399.0,0.01144177]
[1766585138341,0.00021661,87417.0,87398.0,0.06865144]
[1766585138654,0.00021661,87417.0,87399.0,0.01144177]
[1766585138849,0.05903061,87427.0,87425.0,2e-08]
[1766585139190,4.7,87425.0,87400.0,0.01144164]
[1766585139350,4.7,87423.0,87400.0,0.01154825]
[1766585139554,0.05724,87426.0,87400.0,0.06875631]
[1766585139555,0.02468262,87422.0,87400.0,0.06875631]
[1766585139750,4.7,87425.0,87402.0,0.01144138]
[1766585139994,1.5381,87423.0,87405.0,0.01144099]
[1766585140171,0.02468262,87422.0,87407.0,0.01114791]
[1766585140360,0.08192262,87426.0,87407.0,0.01085512]
[1766585140553,0.03434799,87427.0,87406.0,0.01144086]
[1766585140779,0.01148,87425.0,87406.0,0.35953]
[1766585142391,0.01148,87425.0,87406.0,0.37097086]
[1766585143100,0.01148,87425.0,87404.0,0.01144112]
[1766585143295,0.01148,87425.0,87405.0,0.01144099]
[1766585143522,0.01148,87425.0,87404.0,0.0686467]
[1766585143866,0.01148,87425.0,87405.0,0.01144099]
[1766585144748,0.01148,87425.0,87406.0,0.31372043]
[1766585144953,0.01148,87425.0,87406.0,0.30227957]
[1766585145143,0.01148,87425.0,87406.0,0.31372043]
[1766585145289,0.01148,87425.0,87406.0,0.01144086]
[1766585147520,0.01148,87425.0,87405.0,0.06864583]
[1766585147698,0.01148,87425.0,87406.0,0.01144086]
[1766585148240,0.01148,87424.0,87406.0,0.01144086]
[1766585148544,0.01148,87424.0,87403.0,0.01144125]
[1766585148545,0.01148,87424.0,87403.0,0.37097125]
[1766585148726,0.01148,87424.0,87403.0,0.42817737]
[1766585149207,0.01148,87424.0,87404.0,0.01144112]
[1766585149403,0.01148,87424.0,87403.0,0.42817737]
[1766585149740,0.01148,87424.0,87404.0,0.01144112]
[1766585150923,0.01148,87424.0,87405.0,0.01144099]
[1766585151148,0.01148,87424.0,87404.0,0.06864651]
[1766585151642,0.01148,87424.0,87405.0,0.06864584]
[1766585151820,0.01148,87424.0,87407.0,0.37097073]
[1766585152016,0.02492755,87429.0,87424.0,0.0003]
[1766585152017,0.01148,87426.0,87424.0,0.0003]
[1766585152305,0.01148,87426.0,87410.0,0.01144033]
[1766585152452,0.01148,87426.0,87409.0,0.06864264]
[1766585152633,0.01148,87426.0,87408.0,0.0114406]
[1766585152834,0.01148,87426.0,87409.0,0.01144046]
[1766585153038,0.01148,87426.0,87409.0,0.06864264]
[1766585153039,0.00465,87424.0,87409.0,0.06864264]
[1766585153253,0.00465,87424.0,87409.0,0.01144046]
[1766585153654,0.00465,87424.0,87408.0,0.0114406]
[1766585154039,0.00465,87424.0,87408.0,3.53e-06]
[1766585160107,0.00465,87424.0,87405.0,3.53e-06]
[1766585160315,4.7,87422.0,87397.0,0.00011]
[1766585160536,4.7,87422.0,87390.0,0.38575]
[1766585160537,4.7,87420.0,87393.0,0.01148]
[1766585160690,0.02469317,87419.0,87393.0,0.01148]
[1766585160864,0.01148,87418.0,87393.0,0.01148]
[1766585161066,4.7,87417.0,87390.0,0.01144295]
[1766585161275,4.7,87417.0,87394.0,0.01144243]
[1766585161276,4.7,87415.0,87394.0,0.01144243]
[1766585161501,0.02470345,87414.0,87394.0,0.4544027]
[1766585161723,1.241,87417.0,87397.0,0.01144204]
[1766585161929,0.01148,87418.0,87395.0,0.38575]
[1766585161930,1.2395,87415.0,87395.0,0.38575]
[1766585162114,0.02470345,87414.0,87395.0,0.38575]
[1766585162313,4.066,87417.0,87395.0,0.38575]
[1766585162561,4.0608,87415.0,87395.0,0.38575]
[1766585162765,0.02470345,87414.0,87395.0,0.38575]
[1766585162975,3.7174,87417.0,87395.0,0.38575]
[1766585163167,3.7142,87415.0,87395.0,0.38575]
[1766585163364,0.02470345,87414.0,87395.0,0.38575]
[1766585163532,3.7175,87417.0,87395.0,0.38575]
[1766585163731,3.4059,87415.0,87395.0,0.38575]
[1766585163937,0.02470345,87414.0,87395.0,0.38575]
[1766585164141,3.4112,87417.0,87395.0,0.38575]
[1766585164344,3.4066,87415.0,87395.0,0.38575]
[1766585164525,0.02470345,87414.0,87395.0,0.38575]
[1766585164727,3.5482,87417.0,87395.0,0.38575]
[1766585164978,3.7909,87415.0,87395.0,0.38575]
[1766585165185,0.02470345,87414.0,87395.0,0.38575]
[1766585165477,4.3949,87417.0,87395.0,0.38575]
[1766585165692,4.3903,87415.0,87395.0,0.38575]